bitfinex/quotes_SOLUSD_20250106
["timestamp","ask_amount","ask_price","bid_price","bid_amount"]
[1736153284127,35.0368,214.06,213.95,9.22463592]
[1736153284352,9.22463592,214.01,213.95,9.22463592]
[1736153284550,9.22463592,213.99,213.95,23.776884]
[1736153285018,9.22463592,214.01,213.94,33.00151992]
[1736153286255,9.22463592,213.99,213.94,23.776884]
[1736153286434,9.22463592,213.97,213.93,50.5]
[1736153288233,9.22463592,213.97,213.92,23.776884]
[1736153289062,11.6828,213.99,213.92,23.776884]
[1736153289063,9.22463592,213.99,213.93,9.22463592]
[1736153289849,9.22463592,213.99,213.92,33.70256449]
[1736153290050,9.22463592,213.99,213.94,23.776884]
[1736153290561,20.90693592,214.0,213.94,23.776884]
[1736153291057,9.22463592,213.99,213.93,9.22463592]
[1736153296776,20.90693592,214.0,213.93,9.22463592]
[1736153297667,9.22463592,213.99,213.93,33.00151992]
[1736153300161,9.22463592,214.0,213.93,33.00151992]
[1736153303572,9.22463592,213.99,213.93,23.776884]
[1736153306047,9.22463592,214.0,213.93,33.00151992]
[1736153306243,9.22463592,214.02,213.95,23.776884]
[1736153306448,9.22463592,214.03,213.96,9.92551926]
[1736153306644,9.22463592,214.03,213.97,23.776884]
[1736153306970,11.6795,214.05,213.97,23.776884]
[1736153306971,9.22463592,214.04,213.98,0.70085863]
[1736153307775,11.6778,214.09,213.99,33.00151992]
[1736153307941,9.22463592,214.06,213.99,33.00151992]
[1736153309558,9.22463592,214.05,213.99,23.776884]
[1736153309767,9.22463592,214.02,213.98,56.67]
[1736153310694,9.22463592,214.0,213.98,50.5]
[1736153310880,9.22463592,214.0,213.96,1.5312]
[1736153310881,9.22463592,213.99,213.96,1.5312]
[1736153312099,9.22463592,213.98,213.92,6.17]
[1736153312247,9.22463592,213.98,213.93,23.776884]
[1736153313770,9.22463592,213.98,213.92,6.17]
[1736153314562,9.22463592,213.99,213.92,6.17]
[1736153314892,9.22463592,213.99,213.92,15.39463592]
[1736153315091,9.22463592,213.98,213.92,6.17]
[1736153318595,9.22463592,213.97,213.92,6.17]
[1736153318899,9.22463592,213.98,213.92,6.17]
[1736153321495,9.22463592,213.99,213.92,15.39463592]
[1736153323795,20.90653592,214.01,213.94,9.22463592]
[1736153324412,9.22463592,214.03,213.96,9.22463592]
[1736153324565,9.22463592,214.05,213.99,9.22463592]
[1736153324969,9.22463592,214.04,213.98,9.22463592]
[1736153326399,9.22463592,214.08,214.02,23.776884]
[1736153326604,9.22463592,214.09,214.02,33.00151992]
[1736153326896,11.6762,214.11,214.01,60.42532525]
[1736153327108,20.90083592,214.11,214.04,9.22463592]
[1736153327270,9.22463592,214.09,214.02,23.776884]
[1736153327474,9.22463592,214.06,214.01,50.5]
[1736153328201,9.22463592,214.07,214.01,50.5]
[1736153330231,9.22463592,214.07,214.01,23.776884]
[1736153331121,9.22463592,214.07,214.0,6.3524]
[1736153331295,9.22463592,214.06,214.0,6.3524]
[1736153331489,9.22463592,214.03,213.99,1.5444]
[1736153331813,20.0,214.1,213.97,33.00151992]
[1736153331988,9.22463592,214.04,213.97,33.00151992]
[1736153332486,9.22463592,214.03,213.97,23.776884]
[1736153333235,9.22463592,214.04,213.97,33.00151992]
[1736153337017,23.3513,214.12,213.98,9.22463592]
[1736153337216,35.0269,214.12,213.99,33.00151992]
[1736153337422,35.0269,214.12,214.0,9.22463592]
[1736153337423,9.22463592,214.07,214.0,9.22463592]
[1736153337591,9.22463592,214.08,214.01,9.22463592]
[1736153337791,9.22463592,214.07,214.01,9.22463592]
[1736153337993,9.22463592,214.07,214.0,9.22463592]
[1736153338798,9.22463592,214.06,214.0,9.22463592]
[1736153338998,9.22463592,214.06,213.99,9.22463592]
[1736153339828,9.22463592,214.02,213.98,20.0]
[1736153340327,9.22463592,214.03,213.98,20.0]
[1736153340629,9.22463592,214.04,213.98,20.0]
[1736153342128,9.22463592,214.03,213.98,20.0]
[1736153342430,9.22463592,214.02,213.98,20.0]
[1736153344029,9.22463592,214.03,213.98,20.0]
[1736153345750,9.22463592,214.04,213.98,20.0]
[1736153346847,20.0,214.09,213.99,9.92549867]
[1736153347027,20.0,214.09,214.01,9.22463592]
[1736153347028,9.22463592,214.07,214.01,9.22463592]
[1736153348947,9.22463592,214.07,214.0,33.00151992]
[1736153349131,9.22463592,214.06,214.0,23.776884]
[1736153350754,9.22463592,214.05,214.0,23.776884]
[1736153352258,9.22463592,214.05,213.99,9.92549867]
[1736153352555,9.22463592,214.05,213.98,79.72463592]
[1736153352749,9.22463592,214.05,213.99,23.776884]
[1736153353057,9.22463592,214.02,213.98,20.0]
[1736153353235,9.22463592,214.0,213.95,58.3336]
[1736153353547,9.22463592,213.99,213.95,7.8336]
[1736153354059,9.22463592,214.0,213.95,7.8336]
[1736153358055,20.90543592,214.03,213.96,9.92561016]
[1736153358563,20.90543592,214.03,213.96,0.70097424]
[1736153358564,9.22463592,214.02,213.96,0.70097424]
[1736153358732,9.22463592,214.02,213.95,17.05823592]
[1736153359232,9.22463592,214.05,213.99,9.22463592]
[1736153360267,9.22463592,214.06,213.99,9.22463592]
[1736153360561,9.22463592,214.07,214.0,9.92542435]
[1736153361536,9.22463592,214.06,214.0,0.70078843]
[1736153361954,9.22463592,214.04,213.97,0.7007541]
[1736153362163,11.6767,214.1,213.97,51.2007541]
[1736153362164,9.22463592,214.03,213.97,51.2007541]
[1736153362375,9.22463592,214.03,213.98,23.776884]
[1736153362874,9.22463592,214.04,213.98,23.776884]
[1736153364169,20.0,214.07,213.98,33.00151992]
[1736153364346,20.0,214.07,213.99,0.70081283]
[1736153364672,9.22463592,214.05,213.99,0.70081283]
[1736153367557,9.22463592,214.06,213.99,9.92544875]
[1736153368177,23.3513,214.12,214.0,23.776884]
[1736153368383,9.22463592,214.08,214.02,23.776884]
[1736153368553,9.22463592,214.09,214.02,34.50861992]
[1736153368879,9.22463592,214.09,214.03,0.70064166]
[1736153369589,35.0221,214.15,214.03,0.70064166]
[1736153369888,35.0221,214.15,214.04,0.70063629]
[1736153370196,20.0,214.12,214.02,52.0071]
[1736153371083,20.0,214.12,214.02,50.5]
[1736153371394,9.22463592,214.04,214.01,6.4079]
[1736153371684,11.6796,214.05,213.97,52.0748]
[1736153371685,9.22463592,214.02,213.97,52.0748]
[1736153372669,9.22463592,214.02,213.97,1.5748]
[1736153374072,9.22463592,214.03,213.97,1.5748]
[1736153375202,9.22463592,214.0,213.97,1.5748]
[1736153375363,9.22463592,213.98,213.92,51.2008783]
[1736153375563,9.22463592,213.97,213.91,7.7185]
[1736153376190,9.22463592,213.95,213.91,7.7185]
[1736153376398,9.22463592,213.96,213.91,7.7185]
[1736153377301,9.22463592,213.96,213.91,1.621]
[1736153378562,7.24556309,214.11,214.0,1.5084]
[1736153378766,7.24556309,214.11,214.04,9.22463592]
[1736153379271,9.22463592,214.13,214.04,9.22463592]
[1736153379666,9.22463592,214.11,214.02,9.22463592]
[1736153379885,9.22463592,214.09,214.0,1.5084]
[1736153380081,9.22463592,214.09,214.0,10.73303592]
[1736153381005,11.6778,214.08,214.0,10.73303592]
[1736153382707,9.22463592,214.03,213.94,1.599]
[1736153383004,9.22463592,214.03,213.94,10.82363592]
[1736153388404,40.90433592,214.05,213.94,10.82363592]
[1736153392114,9.22463592,214.03,213.94,10.82363592]
[1736153396290,11.6811,214.02,213.94,1.599]
[1736153397308,11.6811,214.02,213.94,1.599]
[1736153400460,40.90423592,214.05,213.96,9.22463592]
[1736153401431,9.22463592,214.07,213.99,6.6227]
[1736153401636,9.22463592,214.09,214.0,11.55207881]
[1736153402136,9.22463592,214.07,214.0,11.55207881]
[1736153403430,23.3524,214.11,214.0,11.55207881]
[1736153403610,9.22463592,214.07,214.0,10.85133592]
[1736153405532,9.22463592,214.08,214.01,9.9253486]
[1736153405738,11.6748,214.14,214.04,9.22463592]
[1736153405907,9.22463592,214.11,214.04,9.92521026]
[1736153406846,9.22463592,214.1,214.04,0.70057434]
[1736153408357,36.89854368,214.17,214.0,62.05193229]
[1736153408358,9.22463592,214.07,214.0,62.05193229]
[1736153410636,9.22463592,214.08,214.01,9.22463592]
[1736153410833,9.22463592,214.08,214.02,0.70068461]
[1736153411040,9.22463592,214.09,214.02,0.70068461]
[1736153411247,9.22463592,214.11,214.04,9.22463592]
[1736153411422,9.22463592,214.11,214.03,9.22463592]
[1736153411618,9.22463592,214.11,214.04,9.92521306]
[1736153411836,9.22463592,214.1,214.04,0.70057714]
[1736153413554,9.22463592,214.09,214.04,0.70057714]
[1736153413721,11.6755,214.13,214.03,50.5]
[1736153413722,9.22463592,214.08,214.03,50.5]
[1736153413924,9.22463592,214.07,214.03,50.5]
[1736153419168,9.22463592,214.08,214.0,62.05204673]
[1736153420873,9.22463592,214.07,214.0,62.05204673]
[1736153421777,9.22463592,214.08,214.0,62.05204673]
[1736153422754,9.22463592,214.09,214.01,9.22463592]
[1736153422978,9.22463592,214.08,214.02,0.70066591]
[1736153427884,9.22463592,214.08,214.0,1.6267]
[1736153428089,9.22463592,214.06,214.0,1.6267]
[1736153429360,9.22463592,214.07,214.0,1.6267]
[1736153429561,9.22463592,214.07,214.01,0.70072341]
[1736153439296,9.22463592,214.07,214.01,0.70072341]
[1736153447202,20.0,214.11,214.01,0.70072341]
[1736153447498,9.22463592,214.06,214.01,0.70072341]
[1736153449817,20.0,214.11,214.01,0.70072341]
[1736153449982,9.22463592,214.07,214.01,0.70072341]
[1736153450686,9.22463592,214.08,214.01,0.70072341]
[1736153451087,9.22463592,214.08,214.01,9.92535933]
[1736153451307,9.22463592,214.11,214.04,33.00151992]
[1736153451514,9.22463592,214.12,214.06,6.3169]
[1736153451810,9.22463592,214.12,214.07,0.70050615]
[1736153452793,9.22463592,214.11,214.06,6.3169]
[1736153454916,9.22463592,214.1,214.06,6.3169]
[1736153455620,9.22463592,214.09,214.06,6.3169]
[1736153458721,9.22463592,214.1,214.06,6.3169]
[1736153459017,11.6746,214.14,214.06,6.3169]
[1736153459190,9.22463592,214.1,214.06,6.3169]
[1736153460396,9.22463592,214.13,214.07,61.92951863]
[1736153462592,9.22463592,214.13,214.07,52.70488271]
[1736153462794,9.22463592,214.11,214.07,2.20488271]
[1736153463213,9.22463592,214.11,214.07,1.5044]
[1736153469235,11.6735,214.16,214.07,1.5044]
[1736153469530,9.22463592,214.12,214.08,0.70052177]
[1736153476630,9.22463592,214.14,214.08,0.70052177]
[1736153476828,35.0139,214.2,214.08,51.20052177]
[1736153477015,9.22463592,214.15,214.09,23.776884]
[1736153477213,9.22463592,214.15,214.1,0.70034489]
[1736153477841,9.22463592,214.14,214.1,0.70034489]
[1736153480009,11.6713,214.2,214.11,23.776884]
[1736153480210,9.22463592,214.15,214.11,74.276884]
[1736153482619,9.22463592,214.15,214.12,0.70031724]
[1736153482929,9.22463592,214.16,214.12,0.70031724]
[1736153483510,9.22463592,214.15,214.12,0.70031724]
[1736153484012,9.22463592,214.16,214.12,0.70031724]
[1736153485235,9.22463592,214.17,214.12,0.70031724]
[1736153486543,9.22463592,214.16,214.12,0.70031724]
[1736153490856,23.3419,214.21,214.12,0.70031724]
[1736153491024,9.22463592,214.18,214.12,0.70031724]
[1736153491230,9.22463592,214.19,214.14,7.8853]
[1736153491534,9.22463592,214.19,214.15,0.70019881]
[1736153492124,11.6691,214.24,214.16,23.776884]
[1736153492439,9.22463592,214.22,214.17,0.7001554]
[1736153492633,24.9104,214.31,214.2,33.00151992]
[1736153492634,11.6658,214.31,214.2,33.00151992]
[1736153492833,9.22463592,214.29,214.24,23.776884]
[1736153493029,9.22463592,214.3,214.26,23.776884]
[1736153493351,9.22463592,214.3,214.27,0.69982848]
[1736153496278,9.22463592,214.28,214.25,50.5]
[1736153496573,9.22463592,214.26,214.25,50.5]
[1736153497742,9.22463592,214.27,214.25,50.5]
[1736153497946,9.22463592,214.27,214.23,8.76508326]
[1736153498462,9.22463592,214.28,214.23,59.26508326]
[1736153499151,9.22463592,214.27,214.23,59.26508326]
[1736153499651,9.22463592,214.24,214.18,6.0849]
[1736153499884,9.22463592,214.22,214.18,6.0849]
[1736153500366,9.22463592,214.23,214.19,0.70011925]
[1736153501474,11.668,214.27,214.19,0.70011925]
[1736153501677,13.2529,214.31,214.19,9.92475517]
[1736153501845,13.2529,214.31,214.21,9.22463592]
[1736153501846,9.22463592,214.27,214.21,9.22463592]
[1736153502145,9.22463592,214.27,214.22,0.69998069]
[1736153502767,9.22463592,214.28,214.22,0.69998069]
[1736153502970,9.22463592,214.28,214.22,9.92461661]
[1736153503173,9.22463592,214.29,214.22,9.92461661]
[1736153504651,9.22463592,214.29,214.23,9.22463592]
[1736153504846,9.22463592,214.29,214.24,0.69993498]
[1736153509181,9.22463592,214.3,214.24,0.69993498]
[1736153509556,11.6637,214.34,214.24,0.69993498]
[1736153509753,9.22463592,214.3,214.24,0.69993498]
[1736153510172,11.6637,214.34,214.19,51.19986898]
[1736153510173,9.22463592,214.26,214.19,51.19986898]
[1736153510372,9.22463592,214.27,214.2,59.72463592]
[1736153510657,9.22463592,214.28,214.21,0.69999371]
[1736153510867,11.6637,214.34,214.21,9.92462963]
[1736153511192,9.22463592,214.3,214.23,9.22463592]
[1736153511365,9.22463592,214.3,214.24,0.69989298]
[1736153512082,9.22463592,214.29,214.24,0.69989298]
[1736153515186,9.22463592,214.28,214.24,0.69989298]
[1736153515390,9.22463592,214.28,214.22,50.5]
[1736153515571,9.22463592,214.28,214.22,51.20002005]
[1736153515980,9.22463592,214.28,214.22,0.70002005]
[1736153517990,9.22463592,214.27,214.22,0.70002005]
[1736153518286,9.22463592,214.27,214.21,0.70001863]
[1736153518964,20.0,214.34,214.23,9.22463592]
[1736153519161,9.22463592,214.3,214.24,51.19985197]
[1736153519985,20.0,214.34,214.25,9.22463592]
[1736153520302,9.22463592,214.34,214.27,9.22463592]
[1736153520887,9.22463592,214.32,214.26,9.92447805]
[1736153521603,9.22463592,214.33,214.26,9.92447805]
[1736153521785,9.22463592,214.32,214.26,9.92447805]
[1736153523480,9.22463592,214.33,214.26,9.92447805]
[1736153525404,11.6631,214.36,214.26,9.92447805]
[1736153525608,11.6604,214.4,214.28,9.22463592]
[1736153525817,9.22463592,214.34,214.27,83.50151992]
[1736153525983,9.22463592,214.35,214.28,9.22463592]
[1736153526183,9.22463592,214.35,214.28,9.92441665]
[1736153526616,9.22463592,214.34,214.28,0.69978073]
[1736153526911,9.22463592,214.33,214.26,9.22463592]
[1736153527106,9.22463592,214.34,214.27,9.92443059]
[1736153527828,9.22463592,214.39,214.32,9.22463592]
[1736153529191,9.22463592,214.4,214.33,9.92426919]
[1736153529492,1.85965102,214.48,214.35,9.22463592]
[1736153529696,9.22463592,214.42,214.36,9.22463592]
[1736153531900,11.6584,214.44,214.37,9.92421086]
[1736153532105,11.6584,214.44,214.38,9.22463592]
[1736153533229,1.66,214.52,214.39,9.92412555]
[1736153533432,1.6212,214.6,214.48,9.22463592]
[1736153533717,9.22463592,214.55,214.49,9.22463592]
[1736153534915,9.22463592,214.5,214.44,0.69918807]
[1736153535102,9.22463592,214.46,214.41,2.2683404]
[1736153535303,9.22463592,214.47,214.41,2.2683404]
[1736153535700,9.22463592,214.46,214.41,2.2683404]
[1736153536407,9.22463592,214.44,214.41,1.5692]
[1736153536594,36.89854368,214.5,214.37,0.69938889]
[1736153536595,9.22463592,214.42,214.37,0.69938889]
[1736153536793,9.22463592,214.41,214.36,1.5036]
[1736153536986,9.22463592,214.4,214.36,1.5036]
[1736153537497,23.776884,214.49,214.3,7.7488]
[1736153537704,9.22463592,214.4,214.34,9.22463592]
[1736153537926,9.22463592,214.41,214.35,0.69958847]
[1736153538222,9.22463592,214.41,214.35,9.92422439]
[1736153539423,9.22463592,214.42,214.36,9.22463592]
[1736153539725,9.22463592,214.42,214.36,9.92420418]
[1736153540034,9.22463592,214.42,214.36,9.22463592]
[1736153540524,9.22463592,214.43,214.37,0.69956925]
[1736153541220,29.22463592,214.46,214.4,9.22463592]
[1736153541539,11.6557,214.49,214.37,0.69956925]
[1736153541540,9.22463592,214.49,214.42,9.22463592]
[1736153541691,9.22463592,214.46,214.39,17.15833592]
[1736153542016,36.5115,214.56,214.41,9.22463592]
[1736153542319,9.22463592,214.49,214.42,9.22463592]
[1736153543025,9.22463592,214.46,214.4,50.5]
[1736153543204,9.22463592,214.46,214.4,51.1994542]
[1736153543405,9.22463592,214.47,214.4,60.42409012]
[1736153544333,9.22463592,214.48,214.41,9.22463592]
[1736153544495,9.22463592,214.48,214.42,0.69936098]
[1736153545228,11.6546,214.51,214.42,9.9239969]
[1736153545394,9.22463592,214.49,214.42,9.9239969]
[1736153546537,34.9567,214.55,214.44,9.22463592]
[1736153546737,9.22463592,214.53,214.46,9.22463592]
[1736153546897,9.22463592,214.52,214.45,9.22463592]
[1736153547228,9.22463592,214.51,214.45,9.22463592]
[1736153547430,9.22463592,214.51,214.44,9.22463592]
[1736153548332,9.22463592,214.51,214.45,0.69929998]
[1736153548639,9.22463592,214.5,214.45,0.69929998]
[1736153548929,9.22463592,214.49,214.43,0.69930004]
[1736153549227,9.22463592,214.47,214.41,60.42394099]
[1736153549435,9.22463592,214.46,214.41,51.19930507]
[1736153549724,9.22463592,214.42,214.39,7.9337]
[1736153551628,11.6576,214.46,214.35,51.19936683]
[1736153551629,9.22463592,214.41,214.35,51.19936683]
[1736153551810,9.22463592,214.38,214.35,50.5]
[1736153552129,9.22463592,214.39,214.34,8.3055]
[1736153553028,14.37419345,214.39,214.34,8.3055]
[1736153554006,14.37419345,214.41,214.34,22.67969345]
[1736153554215,14.37419345,214.42,214.35,15.07380682]
[1736153554534,11.656,214.48,214.35,15.07380682]
[1736153554535,14.37419345,214.43,214.36,14.37419345]
[1736153554693,14.37419345,214.43,214.37,15.07367757]
[1736153554899,14.37419345,214.43,214.37,0.69948412]
[1736153556829,14.37419345,214.41,214.34,23.379195]
[1736153557933,14.37419345,214.42,214.35,14.37419345]
[1736153558097,14.37419345,214.41,214.34,23.379195]
[1736153559637,14.37419345,214.42,214.35,14.37419345]
[1736153559815,14.37419345,214.42,214.36,0.69954411]
[1736153560743,23.776884,214.48,214.36,0.69954411]
[1736153560744,14.37419345,214.41,214.36,0.69954411]
[1736153560941,14.37419345,214.41,214.35,0.69956936]
[1736153570072,14.37419345,214.4,214.35,0.69956936]
[1736153570373,14.37419345,214.41,214.35,0.69956936]
[1736153570553,14.37419345,214.42,214.35,15.07376281]
[1736153570854,14.37419345,214.43,214.35,15.07376281]
[1736153571464,14.37419345,214.43,214.36,14.37419345]
[1736153571653,14.37419345,214.43,214.37,0.69952031]
[1736153571959,14.37419345,214.42,214.37,0.69952031]
[1736153573441,14.37419345,214.43,214.37,0.69952031]
[1736153574466,11.6584,214.44,214.37,15.07371376]
[1736153574660,14.37419345,214.45,214.38,14.37419345]
[1736153574839,14.37419345,214.49,214.42,14.37419345]
[1736153575046,9.1904077,214.5,214.43,11.47740538]
[1736153575732,9.1904077,214.5,214.43,2.28699768]
[1736153576052,9.1904077,214.48,214.43,2.28699768]
[1736153577762,9.1904077,214.44,214.39,50.5]
[1736153578063,9.1904077,214.43,214.38,1.5954]
[1736153578932,9.1904077,214.43,214.39,0.69946066]
[1736153580466,11.6573,214.46,214.38,1.5954]
[1736153580467,9.1904077,214.4,214.38,1.5954]
[1736153580938,11.6573,214.46,214.38,1.5954]
[1736153580939,9.1904077,214.41,214.38,1.5954]
[1736153581144,9.1904077,214.42,214.38,1.5954]
[1736153582561,9.1904077,214.43,214.38,1.5954]
[1736153584884,20.8482077,214.45,214.39,0.6994702]
[1736153585457,9.1904077,214.46,214.39,9.8898779]
[1736153585655,20.8465077,214.48,214.41,9.1904077]
[1736153585952,20.8465077,214.48,214.42,0.69933115]
[1736153586596,23.3089,214.51,214.42,0.69933115]
[1736153586760,9.1904077,214.49,214.42,9.88973885]
[1736153587585,9.1904077,214.48,214.42,0.69933115]
[1736153588288,20.0,214.54,214.42,0.69933115]
[1736153588610,9.1904077,214.48,214.42,0.69933115]
[1736153588958,9.1904077,214.49,214.42,9.88973885]
[1736153589893,11.6548,214.51,214.42,0.69933115]
[1736153589894,9.1904077,214.48,214.42,0.69933115]
[1736153591389,9.1904077,214.46,214.42,0.69933115]
[1736153591699,9.1904077,214.46,214.4,0.69938343]
[1736153592591,9.1904077,214.47,214.4,29.88979113]
[1736153593461,9.1904077,214.48,214.41,9.1904077]
[1736153593786,9.1904077,214.48,214.42,0.69931491]
[1736153594258,9.1904077,214.49,214.42,0.69931491]
[1736153594889,9.1904077,214.49,214.42,9.88972261]
[1736153595399,20.0,214.54,214.44,7.835]
[1736153595576,9.1904077,214.52,214.45,9.88961828]
[1736153597101,23.3024,214.57,214.45,9.88961828]
[1736153597102,9.1904077,214.51,214.45,0.69921058]
[1736153598479,9.1904077,214.47,214.44,7.835]
[1736153598679,9.1904077,214.46,214.44,7.835]
[1736153598885,9.1904077,214.47,214.44,7.835]
[1736153599272,9.1904077,214.46,214.44,1.6471]
[1736153600000,11.6529,214.54,214.44,10.8375077]
[1736153600300,9.1904077,214.51,214.45,0.69934502]
[1736153602200,9.1904077,214.52,214.45,9.88975272]
[1736153603396,1.5402,214.61,214.49,9.1904077]
[1736153603577,9.1904077,214.55,214.5,0.69905016]
[1736153604806,11.6501,214.6,214.5,0.69905016]
[1736153604988,9.1904077,214.55,214.5,0.69905016]
[1736153605183,9.1904077,214.56,214.5,0.69905016]
[1736153605597,9.1904077,214.55,214.5,0.69905016]
[1736153605809,9.1904077,214.54,214.5,0.69905016]
[1736153605999,9.1904077,214.52,214.5,0.69905016]
[1736153606210,9.1904077,214.52,214.47,6.77459922]
[1736153606499,9.1904077,214.53,214.47,6.77459922]
[1736153609803,9.1904077,214.54,214.47,15.96500692]
[1736153610108,9.1904077,214.55,214.48,9.1904077]
[1736153610404,9.1904077,214.54,214.49,0.69910121]
[1736153610807,9.1904077,214.53,214.49,0.69910121]
[1736153611207,9.1904077,214.53,214.48,0.6991407]
[1736153611409,9.1904077,214.52,214.47,6.0755]
[1736153612391,9.1904077,214.51,214.47,6.0755]
[1736153614107,9.1904077,214.52,214.47,6.0755]
[1736153614416,9.1904077,214.53,214.48,0.69919134]
[1736153614713,9.1904077,214.54,214.48,0.69919134]
[1736153616227,9.1904077,214.53,214.48,0.69919134]
[1736153616402,9.1904077,214.54,214.48,0.69919134]
[1736153617824,11.6495,214.6,214.48,9.88959904]
[1736153618015,9.1904077,214.56,214.49,9.1904077]
[1736153618322,9.1904077,214.56,214.5,0.69907196]
[1736153621317,11.6495,214.6,214.5,0.69907196]
[1736153621318,9.1904077,214.54,214.5,0.69907196]
[1736153621522,9.1904077,214.53,214.47,6.77463965]
[1736153621722,11.6495,214.6,214.47,6.77463965]
[1736153622019,9.1904077,214.53,214.47,15.96504735]
[1736153622195,9.1904077,214.54,214.47,15.96504735]
[1736153623399,9.1904077,214.53,214.47,6.77463965]
[1736153624124,11.651,214.58,214.47,15.96504735]
[1736153624125,9.1904077,214.54,214.47,15.96504735]
[1736153624815,9.1904077,214.54,214.47,6.77463965]
[1736153625020,9.1904077,214.51,214.47,6.0755]
[1736153625208,9.1904077,214.51,214.47,6.77474654]
[1736153625529,9.1904077,214.52,214.47,6.77474654]
[1736153625700,9.1904077,214.5,214.47,0.69924654]
[1736153626021,9.1904077,214.48,214.44,1.6471]
[1736153626231,9.1904077,214.47,214.44,1.6471]
[1736153626601,9.1904077,214.48,214.44,1.6471]
[1736153626806,9.1904077,214.49,214.44,1.6471]
[1736153627001,23.776884,214.6,214.44,1.6471]
[1736153627203,9.1904077,214.49,214.44,1.6471]
[1736153629422,9.1904077,214.48,214.44,1.6471]
[1736153632940,23.3002,214.59,214.39,1.525]
[1736153632941,9.1904077,214.46,214.39,1.525]
[1736153633122,9.1904077,214.46,214.39,10.7154077]
[1736153633438,30.62436587,214.6,214.39,10.7154077]
[1736153633439,34.9519,214.58,214.41,29.1904077]
[1736153633745,9.1904077,214.48,214.42,9.1904077]
[1736153633908,9.1904077,214.49,214.42,9.88972663]
[1736153634422,9.1904077,214.48,214.42,0.69931893]
[1736153635035,9.1904077,214.47,214.42,0.69931893]
[1736153635929,9.1904077,214.48,214.42,0.69931893]
[1736153637342,23.3013,214.58,214.47,9.1904077]
[1736153637552,9.1904077,214.54,214.47,9.1904077]
[1736153637727,9.1904077,214.53,214.46,9.1904077]
[1736153637915,9.1904077,214.52,214.45,9.1904077]
[1736153638938,9.1904077,214.49,214.44,2.04]
[1736153639135,9.1904077,214.51,214.44,2.04]
[1736153640237,9.1904077,214.51,214.44,11.2304077]
[1736153640750,9.1904077,214.5,214.44,2.04]
[1736153641259,34.9503,214.59,214.42,0.69930095]
[1736153641459,34.9503,214.59,214.41,20.0]
[1736153641460,9.1904077,214.46,214.41,20.0]
[1736153641755,2.04,214.45,214.37,7.32402217]
[1736153642052,9.1904077,214.42,214.37,7.32402217]
[1736153642345,2.04,214.48,214.37,7.32402217]
[1736153642346,9.1904077,214.43,214.37,7.32402217]
[1736153642845,9.1904077,214.42,214.34,9.1904077]
[1736153643254,9.1904077,214.43,214.36,9.1904077]
[1736153644124,9.1904077,214.44,214.37,9.88994299]
[1736153644329,13.6965,214.48,214.37,9.88994299]
[1736153644544,9.1904077,214.46,214.39,9.1904077]
[1736153644849,9.1904077,214.45,214.38,9.1904077]
[1736153645759,9.1904077,214.45,214.37,9.88994299]
[1736153646060,9.1904077,214.44,214.37,9.88994299]
[1736153647462,9.1904077,214.43,214.37,0.69953529]
[1736153647848,9.1904077,214.43,214.36,16.7969077]
[1736153648454,9.1904077,214.42,214.36,7.6065]
[1736153648662,9.1904077,214.41,214.36,7.6065]
[1736153651046,9.1904077,214.42,214.36,7.6065]
[1736153651669,9.1904077,214.41,214.36,1.5226]
[1736153652967,9.1904077,214.38,214.32,0.69963384]
[1736153653168,9.1904077,214.33,214.29,1.5521]
[1736153653341,9.1904077,214.31,214.29,1.5521]
[1736153655077,9.1904077,214.32,214.29,1.5521]
[1736153655775,9.1904077,214.33,214.29,1.5521]
[1736153658257,11.6604,214.4,214.3,9.89025911]
[1736153658452,9.1904077,214.37,214.3,9.89025911]
[1736153658666,9.1904077,214.36,214.3,9.89025911]
[1736153659580,9.1904077,214.35,214.29,10.7425077]
[1736153659762,9.1904077,214.35,214.29,1.5521]
[1736153660657,9.1904077,214.34,214.29,1.5521]
[1736153661057,9.1904077,214.35,214.29,1.5521]
[1736153664481,9.1904077,214.36,214.29,10.7425077]
[1736153665704,9.1904077,214.37,214.3,9.1904077]
[1736153667094,6.5288,214.46,214.3,9.1904077]
[1736153667268,9.1904077,214.41,214.35,9.1904077]
[1736153668594,9.1904077,214.41,214.34,9.1904077]
[1736153668778,9.1904077,214.38,214.29,2.25172834]
[1736153668979,9.1904077,214.38,214.31,9.1904077]
[1736153669369,11.6592,214.43,214.32,9.1904077]
[1736153669370,9.1904077,214.39,214.32,9.1904077]
[1736153670690,11.6592,214.43,214.32,32.9672917]
[1736153670891,9.1904077,214.38,214.31,9.1904077]
[1736153671400,9.1904077,214.38,214.32,9.1904077]
[1736153671591,9.1904077,214.39,214.32,9.1904077]
[1736153673097,9.1904077,214.39,214.31,9.89014138]
[1736153673299,9.1904077,214.38,214.31,9.89014138]